bitfinex-derivatives/quotes_ETHF0:USTF0_20250220
["timestamp","ask_amount","ask_price","bid_price","bid_amount"]
[1740074742087,0.72984,2739.8,2739.7,0.72983]
[1740074742497,3.2078,2739.9,2739.4,1.1093]
[1740074742698,0.72983,2739.8,2739.7,0.72982]
[1740074742896,0.00546916,2740.0,2739.9,0.72979]
[1740074743698,0.73522916,2740.0,2739.9,0.72979]
[1740074743999,0.73524916,2740.0,2739.9,0.72979]
[1740074744394,0.00546916,2740.0,2739.9,0.72979]
[1740074745199,0.73522916,2740.0,2739.9,0.72979]
[1740074746002,0.00546916,2740.0,2739.7,0.72983]
[1740074746203,0.72986,2739.7,2739.6,0.72986]
[1740074746504,1.7235,2739.9,2739.5,3.2078]
[1740074746794,0.72982,2739.8,2739.7,0.72981]
[1740074747210,2.45329,2739.9,2739.8,0.72981]
[1740074747395,0.72979,2739.9,2739.8,0.72981]
[1740074747701,0.72983,2739.8,2739.7,0.72982]
[1740074747904,0.72983,2739.8,2739.7,1.28692]
[1740074748102,0.72983,2739.8,2739.7,0.5571]
[1740074748295,0.72983,2739.8,2739.7,1.28694]
[1740074748601,0.72983,2739.8,2739.7,0.5571]
[1740074749893,0.72983,2739.8,2739.7,1.28694]
[1740074750090,0.72983,2739.8,2739.7,0.5571]
[1740074750400,0.72983,2739.8,2739.7,1.28694]
[1740074750697,0.72983,2739.8,2739.7,0.5571]
[1740074750897,3.2078,2739.9,2739.5,3.2078]
[1740074751100,0.72987,2739.6,2739.5,3.2078]
[1740074751493,0.553,2739.7,2739.3,0.00546916]
[1740074751697,0.72992,2739.4,2739.3,0.00546916]
[1740074752003,3.93772,2739.4,2739.3,0.00546916]
[1740074756502,0.73008,2738.8,2738.7,3.9379]
[1740074756697,0.73008,2738.8,2738.7,3.2078]
[1740074757097,1.163,2739.3,2738.7,3.2078]
[1740074757403,0.73001,2739.1,2738.8,0.5728]
[1740074757604,0.73001,2739.1,2739.0,0.73003]
[1740074757804,0.73004,2739.0,2738.9,0.73005]
[1740074758000,1.163,2739.3,2738.8,1.1386]
[1740074758204,0.73002,2739.1,2739.0,0.73002]
[1740074758401,1.32455,2739.3,2739.2,0.72997]
[1740074758596,5.7388,2739.4,2738.8,1.1386]
[1740074758801,0.73005,2739.0,2738.9,0.73005]
[1740074759106,7.56365,2739.4,2739.0,0.73001]
[1740074759107,0.73001,2739.1,2739.0,0.73001]
[1740074759410,5.7388,2739.4,2738.8,1.1386]
[1740074759610,0.73004,2739.0,2738.9,0.73004]
[1740074759802,0.5683,2739.3,2738.8,1.1386]
[1740074760110,0.73004,2739.0,2738.9,0.73004]
[1740074760512,0.73005,2738.9,2738.8,1.86866]
[1740074760804,0.5683,2739.3,2738.8,1.1386]
[1740074761006,0.5683,2739.3,2738.7,0.00546916]
[1740074761007,0.73008,2738.8,2738.7,0.00546916]
[1740074761506,2.537,2739.0,2738.7,0.00546916]
[1740074761706,3.26705,2739.0,2738.8,0.73007]
[1740074761903,0.73005,2739.0,2738.9,0.5911]
[1740074762310,1.1268,2739.3,2739.2,0.72997]
[1740074762608,0.72996,2739.3,2739.2,0.72995]
[1740074763208,1.0356,2739.6,2739.0,3.7756]
[1740074763813,0.72997,2739.2,2739.1,0.72999]
[1740074764213,3.2078,2739.4,2738.9,0.5911]
[1740074764411,0.73003,2739.0,2738.9,0.5911]
[1740074764713,0.73008,2738.8,2738.7,3.21326916]
[1740074764905,0.73008,2738.8,2738.7,3.94337916]
[1740074765405,0.73006,2738.9,2738.8,0.73007]
[1740074765614,0.73006,2738.9,2738.7,3.21326916]
[1740074765615,0.5552,2739.3,2738.7,3.21326916]
[1740074765815,0.73003,2739.0,2738.9,0.73004]
[1740074766109,0.73002,2739.1,2739.0,0.73003]
[1740074766302,3.7725,2739.4,2738.7,3.21326916]
[1740074766502,0.73001,2739.1,2739.0,0.73002]
[1740074767003,3.7725,2739.4,2738.7,3.21326916]
[1740074767210,0.72996,2739.3,2739.2,0.72995]
[1740074767612,0.72996,2739.3,2739.2,0.72996]
[1740074768307,0.73,2739.1,2739.0,3.2078]
[1740074768513,1.8249,2739.3,2738.7,3.21326916]
[1740074768708,4.3639,2739.3,2738.8,0.56]
[1740074768907,2.539,2739.3,2738.8,0.56]
[1740074769117,0.73004,2739.0,2738.9,0.587]
[1740074769311,0.73004,2739.0,2738.9,1.31705]
[1740074769913,0.73004,2739.0,2738.9,0.587]
[1740074771015,0.73004,2739.0,2738.9,1.31705]
[1740074771218,0.73004,2739.0,2738.9,0.587]
[1740074771810,3.2078,2739.0,2738.8,0.56]
[1740074772106,0.73008,2738.8,2738.7,0.00546916]
[1740074775219,3.25808,2738.8,2738.7,0.00546916]
[1740074783211,2.528,2738.8,2738.2,0.29742642]
[1740074783414,0.73018,2738.5,2738.4,0.73018]
[1740074783614,0.73018,2738.5,2738.4,1.29048]
[1740074784015,0.73018,2738.5,2738.4,0.5603]
[1740074784221,0.73018,2738.5,2738.4,1.02168373]
[1740074784430,6.0,2738.5,2737.4,3.2078]
[1740074784634,3.2078,2737.7,2737.2,1.1459]
[1740074784928,3.2078,2738.0,2737.3,1.82621]
[1740074785131,3.2078,2738.0,2737.9,0.73032]
[1740074785324,1.1096,2738.4,2737.7,5.0337]
[1740074785629,3.2078,2738.6,2737.8,3.67558075]
[1740074786036,0.73017,2738.5,2738.3,0.73021]
[1740074786230,3.2078,2738.6,2738.4,1.1459]
[1740074786927,0.73558916,2738.7,2738.5,0.73015]
[1740074787235,0.73015,2738.6,2738.4,1.87607]
[1740074787437,0.73013,2738.6,2738.4,1.87608]
[1740074787631,0.73015,2738.6,2738.4,1.1459]
[1740074787833,0.73016,2738.5,2738.4,1.1459]
[1740074788229,0.00546916,2738.7,2738.0,3.93808]
[1740074788230,0.73027,2738.2,2738.0,3.93808]
[1740074788836,0.73027,2738.1,2735.8,5.39247582]
[1740074789135,0.73063,2736.8,2735.4,11.39483206]
[1740074789340,3.2078,2736.3,2735.5,41.3917]
[1740074789832,3.2078,2736.3,2736.2,1.60074291]
[1740074790440,3.2078,2736.3,2736.2,42.40074291]
[1740074791340,3.93855,2736.3,2736.2,42.40074291]
[1740074792037,3.93855,2736.3,2736.2,40.8]
[1740074793440,3.2078,2736.3,2735.5,0.5917]
[1740074793638,3.2078,2735.8,2735.7,0.73091]
[1740074793939,3.2078,2736.1,2736.0,0.73083]
[1740074794138,3.2078,2736.1,2735.7,2.638]
[1740074794139,3.2078,2736.4,2735.7,2.638]
[1740074794334,3.2078,2736.7,2736.3,42.40074291]
[1740074794537,3.93845,2736.7,2736.6,1.60074291]
[1740074794732,3.2078,2736.7,2736.6,1.60074291]
[1740074795134,3.2078,2736.7,2736.6,42.40074291]
[1740074796233,3.93844,2736.7,2736.6,42.40074291]
[1740074796541,3.93844,2736.7,2736.6,40.8]
[1740074797338,3.2078,2736.7,2736.6,42.40074291]
[1740074797841,0.00547955,2736.9,2736.6,42.40074291]
[1740074798142,0.00547955,2736.9,2736.8,2.33135291]
[1740074798338,0.00547955,2736.9,2736.8,1.60074291]
[1740074798740,0.00547955,2736.9,2736.8,2.33135291]
[1740074800837,0.00547955,2736.9,2736.8,1.60074291]
[1740074801042,2.63247955,2736.9,2736.5,0.5574]
[1740074801239,0.73069,2736.5,2736.4,0.00547955]
[1740074801445,0.73069,2736.5,2736.4,1.60622246]
[1740074801739,3.2078,2736.6,2736.4,42.40622246]
[1740074801950,5.84027955,2736.9,2736.5,1.60074291]
[1740074802142,3.21327955,2736.9,2736.8,1.60074291]
[1740074803439,3.21327955,2736.9,2736.8,2.33135291]
[1740074803849,3.21327955,2736.9,2736.8,1.60074291]
[1740074804040,3.21327955,2736.9,2736.8,2.33135291]
[1740074804544,3.21327955,2736.9,2736.8,1.60074291]
[1740074804944,3.21327955,2736.9,2736.8,2.33135291]
[1740074805338,3.94386955,2736.9,2736.8,1.60074291]
[1740074805651,3.21327955,2736.9,2736.6,0.5698]
[1740074805844,3.21327955,2736.9,2736.8,0.73061]
[1740074806544,3.21327955,2736.9,2736.8,2.33135291]
[1740074806750,0.00547955,2736.9,2736.8,2.33135291]
[1740074808951,0.00547955,2736.9,2736.8,2.89625291]
[1740074812847,9.55e-06,2736.9,2736.8,2.89625291]
[1740074813245,0.69469955,2737.1,2737.0,2.33130291]
[1740074813443,9.55e-06,2737.1,2737.0,8.14010291]
[1740074813646,3.2078,2737.6,2737.5,0.73043]
[1740074813851,3.2078,2737.6,2737.5,2.33117291]
[1740074814051,1.0809,2737.9,2737.5,2.33117291]
[1740074814052,4.2887,2737.9,2737.8,0.73035]
[1740074814350,5.01902,2737.9,2737.8,2.33109291]
[1740074814556,4.2887,2737.9,2737.8,43.13109291]
[1740074814758,5.01902,2737.9,2737.8,43.13109291]
[1740074815450,0.73037,2737.7,2737.6,0.73039]
[1740074815648,5.01905,2737.9,2737.8,0.73035]
[1740074815850,4.2887,2737.9,2737.8,2.33109291]
[1740074816254,3.2078,2737.9,2737.8,2.33109291]
[1740074816953,0.00547955,2738.1,2737.8,2.33109291]
[1740074816954,0.00547955,2738.1,2738.0,0.73029]
[1740074817153,0.00547955,2738.1,2738.0,2.33103291]
[1740074817356,9.55e-06,2738.1,2738.0,2.33103291]
[1740074817554,9.55e-06,2738.1,2738.0,2.90253291]
[1740074817851,9.55e-06,2738.1,2738.0,2.33103291]
[1740074819759,0.73027955,2738.1,2738.0,1.60074291]
[1740074820756,9.55e-06,2738.1,2737.8,0.00547955]
[1740074820949,3.2078,2737.9,2736.8,3.2078]
[1740074821154,3.2078,2737.1,2737.0,0.73056]
[1740074821356,3.2078,2737.4,2737.2,1.60074291]
[1740074821663,5.8048,2737.7,2737.4,1.60074291]
[1740074821964,0.7305,2737.3,2737.2,1.60074291]
[1740074822264,3.9383,2737.3,2737.2,1.60074291]
[1740074822557,0.73053,2737.1,2737.0,0.00547955]
[1740074823069,6.73053,2737.1,2737.0,0.00547955]
[1740074823362,0.73053,2737.1,2737.0,0.00547955]
[1740074824260,1.30843,2737.1,2737.0,0.00547955]
[1740074826057,2.591,2737.4,2737.0,1.60622246]
[1740074826253,4.3374,2737.6,2737.2,1.60074291]
[1740074826556,0.73048,2737.3,2737.2,1.60074291]
[1740074827353,6.9284,2737.6,2737.2,1.60074291]
[1740074827553,6.9284,2737.6,2737.4,1.60074291]
[1740074827761,0.73043,2737.5,2737.4,1.60074291]
[1740074827956,6.9284,2737.6,2737.0,0.00547955]
[1740074828158,0.73053,2737.1,2737.0,0.00547955]
[1740074828460,0.73048,2737.3,2737.2,1.60074291]
[1740074828855,0.73051,2737.2,2737.1,0.00204041]
[1740074829056,1.29911,2737.2,2737.1,0.00204041]
[1740074829467,9.88711,2737.2,2737.1,0.00204041]
[1740074829653,0.73053,2737.1,2737.0,0.00547955]
[1740074830862,3.1566,2737.2,2736.3,1.103]
[1740074831055,0.73072,2736.4,2736.3,1.103]
[1740074831464,0.73072,2736.4,2736.3,2.70374291]
[1740074831665,3.2078,2736.6,2736.3,2.70374291]
[1740074831865,3.2078,2736.6,2736.5,1.60074291]
[1740074831866,3.93847,2736.6,2736.5,1.60074291]
[1740074832563,0.73075,2736.3,2736.2,0.00547]
[1740074832765,3.93855,2736.3,2736.2,0.00547]
[1740074832966,3.93855,2736.3,2736.2,1.60621291]
[1740074833561,0.73097,2735.5,2735.2,1.31264]
[1740074833756,0.73091,2735.7,2735.4,0.544]
[1740074833958,3.2078,2735.8,2735.4,0.544]
[1740074834264,3.93868,2735.8,2735.7,1.60074291]
[1740074834769,2.949,2736.0,2735.7,1.60074291]
[1740074834957,2.949,2736.0,2735.9,1.60074291]
[1740074835165,3.67983,2736.0,2735.9,1.60074291]
[1740074835660,2.949,2736.0,2735.4,0.544]
[1740074837967,0.73118,2734.7,2734.6,0.5394]
[1740074838162,3.2078,2734.8,2733.8,3.2078]
[1740074838371,3.2078,2734.6,2734.5,1.60074291]
[1740074838567,3.939,2734.6,2734.5,1.60074291]
[1740074838768,3.2078,2734.6,2734.5,1.60074291]
[1740074839076,4.6703,2734.9,2734.5,1.60074291]
[1740074839371,4.6703,2734.9,2734.1,5.57614]
[1740074839372,2.19362,2734.9,2734.8,1.60074291]
[1740074839570,1.4625,2734.9,2734.8,1.60074291]
[1740074839773,1.4625,2734.9,2734.8,2.33189291]
[1740074840381,1.4625,2734.9,2734.8,1.60074291]
[1740074840575,5.40142,2734.9,2734.8,1.60074291]
[1740074840764,3.2078,2734.9,2734.8,1.60074291]
[1740074840967,0.00547955,2735.0,2734.9,0.73112]
[1740074841267,3.2078,2735.6,2735.2,0.73102]
[1740074841462,3.2078,2735.6,2735.5,1.60074291]
[1740074841669,3.93874,2735.6,2735.5,1.60074291]
[1740074842368,0.7311,2735.0,2734.9,1.1309]
[1740074842769,0.73108,2735.1,2734.9,3.46276291]
[1740074842966,0.73102,2735.3,2735.2,1.60074291]
[1740074843173,3.2078,2735.6,2735.2,1.60074291]
[1740074843369,3.93874,2735.6,2735.5,1.60074291]
[1740074843872,3.2078,2735.6,2735.5,1.60074291]
[1740074844168,2.19837955,2735.8,2735.6,0.73093]
[1740074844376,1.46747955,2735.8,2735.7,2.87185291]
[1740074845170,3.93855,2736.3,2736.1,0.73079]
[1740074845370,3.2078,2736.3,2736.2,2.33151291]
[1740074845572,3.93855,2736.3,2736.2,1.60074291]
[1740074845971,0.73088,2735.8,2735.7,0.5402]
[1740074846371,0.73088,2735.8,2735.7,2.14094291]
[1740074847074,0.73088,2735.8,2735.7,1.60074291]
[1740074850070,3.21327955,2736.0,2735.7,1.60074291]
[1740074850276,3.94410955,2736.0,2735.9,1.60074291]
[1740074855283,3.21327955,2736.0,2735.2,3.719]
[1740074855489,0.73102,2735.3,2735.2,3.719]
[1740074855792,0.73102,2735.3,2734.9,23.4778]
[1740074855793,3.2078,2735.6,2735.5,1.60074291]
[1740074855988,3.2078,2735.6,2735.2,1.60074291]
[1740074856192,3.93882,2735.3,2735.2,1.60074291]
[1740074856785,0.73102,2735.3,2735.2,1.60074291]
[1740074857198,3.93882,2735.3,2735.2,1.60074291]
[1740074857492,0.73112,2734.9,2734.8,0.5519]
[1740074857693,0.73112,2734.9,2734.8,2.15264291]
[1740074858196,0.73112,2734.9,2734.8,2.88379291]
[1740074858696,0.73112,2734.9,2734.8,2.15264291]
[1740074859694,0.73112,2734.9,2734.8,2.88379291]
[1740074860293,3.2078,2735.3,2734.8,2.15264291]
[1740074860493,5.03541,2735.3,2735.0,1.60074291]
[1740074860697,0.73107,2735.1,2735.0,1.60074291]
[1740074861493,5.61761,2735.3,2734.8,0.5519]
[1740074861698,0.7311,2735.0,2734.9,1.60074291]
[1740074862695,3.2078,2735.0,2734.7,0.00547955]
[1740074862892,0.73115,2734.8,2734.7,0.00547955]
[1740074863297,0.73115,2734.8,2734.7,1.60622246]
[1740074863497,0.73115,2734.8,2734.7,2.33740246]
[1740074863795,0.73115,2734.8,2734.7,1.60622246]
[1740074863994,0.73115,2734.8,2734.7,2.33740246]
[1740074864401,0.73115,2734.8,2734.7,1.60622246]
[1740074865198,0.73115,2734.8,2734.7,2.33740246]
[1740074865397,3.2078,2735.0,2734.7,1.60622246]
[1740074865604,3.9389,2735.0,2734.9,1.60074291]
[1740074874893,3.2078,2735.0,2734.9,2.33186291]
[1740074875501,3.9389,2735.0,2734.9,2.33186291]
[1740074876295,3.9389,2735.0,2734.9,1.60074291]
[1740074876696,3.9389,2735.0,2734.9,2.33186291]
[1740074877503,3.9389,2735.0,2734.9,1.60074291]
[1740074879006,0.73115,2734.8,2734.7,0.00547955]
[1740074881705,0.73143,2733.8,2733.6,0.73147]
[1740074881905,3.2078,2734.1,2733.6,0.5565]
[1740074882207,0.73144,2733.7,2733.6,0.5565]
[1740074882398,3.93914,2734.1,2734.0,1.60074291]
[1740074883407,3.2078,2734.1,2734.0,1.60074291]
[1740074883709,0.73677955,2734.3,2734.1,0.73133]
[1740074883902,0.73675955,2734.3,2734.2,2.15724291]
[1740074884103,0.00547955,2734.3,2734.2,2.88855291]
[1740074884403,0.00547955,2734.3,2734.2,2.15724291]
[1740074884802,0.00547955,2734.3,2734.2,2.88855291]
[1740074885499,3.2078,2735.1,2734.2,4.69224291]
[1740074885704,1.0783,2735.0,2734.9,1.60074291]
[1740074886007,0.7311,2735.0,2734.9,1.60074291]
[1740074886402,3.2078,2735.1,2734.9,1.60074291]
[1740074886709,3.93888,2735.1,2735.0,1.60074291]
[1740074886904,3.93888,2735.1,2735.0,3.42614291]
[1740074887111,3.93888,2735.1,2735.0,2.69504291]
[1740074889203,3.2078,2735.1,2735.0,2.69504291]
[1740074889406,0.00547955,2735.3,2735.2,0.73104]
[1740074889617,0.00547955,2735.3,2735.2,2.33178291]
[1740074890316,0.00547955,2735.3,2735.2,5.53958291]
[1740074890509,0.5444,2735.8,2735.2,5.04478612]
[1740074890813,3.2078,2736.3,2735.9,0.73084]
[1740074891008,3.2078,2736.3,2735.5,5.7368]
[1740074891209,0.73077,2736.2,2736.1,1.60074291]
[1740074891911,0.73083,2736.0,2735.9,0.00547955]
[1740074892413,0.73083,2736.0,2735.9,1.60622246]
[1740074893315,0.73083,2736.0,2735.9,2.33706246]
[1740074893515,3.2078,2736.3,2735.9,1.60622246]
[1740074893711,0.73083,2736.0,2735.9,0.73631955]
[1740074894113,0.73083,2736.0,2735.9,2.33706246]
[1740074894315,0.73083,2736.0,2735.9,1.60622246]
[1740074894518,0.73083,2736.0,2735.9,2.33708246]
[1740074895018,0.73083,2736.0,2735.9,1.60622246]
[1740074895217,0.73083,2736.0,2735.9,2.33708246]
[1740074895711,0.73083,2736.0,2735.9,1.60622246]
[1740074896115,0.73083,2736.0,2735.9,2.33708246]
[1740074897118,0.73083,2736.0,2735.9,1.60622246]
[1740074898615,0.73083,2736.0,2735.9,2.33708246]
[1740074898813,0.73081,2736.2,2736.1,0.73077]
[1740074899220,0.73081,2736.2,2736.1,2.33151291]
[1740074899421,3.2078,2736.3,2736.1,1.60074291]
[1740074899619,0.73075,2736.3,2736.2,2.33149291]
[1740074899919,0.73622955,2736.4,2736.3,0.73075]
[1740074900114,0.73622955,2736.4,2736.3,2.33149291]
[1740074901215,0.73622955,2736.4,2736.3,1.60074291]
[1740074902922,0.73622955,2736.4,2736.3,2.33149291]
[1740074903218,0.00547955,2736.4,2736.3,2.33149291]
[1740074903414,0.73072,2736.5,2736.4,0.73068]
[1740074903610,0.73072,2736.5,2736.4,1.26818]
[1740074903816,0.73069,2736.6,2736.5,0.73065]
[1740074904317,0.73069,2736.6,2736.5,2.33143291]
[1740074905218,0.73067,2736.6,2736.5,1.60074291]
[1740074906119,0.73067,2736.6,2736.5,2.33143291]
[1740074906923,0.73067,2736.6,2736.5,1.60074291]
[1740074907420,0.73067,2736.6,2736.5,2.33143291]
[1740074907919,0.73067,2736.6,2736.5,1.60074291]
[1740074908424,0.73077,2736.2,2736.1,1.30379]
[1740074908921,0.73077,2736.2,2736.1,2.90453291]
[1740074910322,0.73072,2736.4,2736.3,0.73075]
[1740074910519,3.2078,2736.6,2736.5,0.73069]
[1740074910520,0.73068,2736.6,2736.5,0.73069]
[1740074910819,0.35247955,2736.8,2736.5,1.60074291]
[1740074911027,0.35247955,2736.8,2736.4,3.2078]
[1740074911028,1.08308955,2736.8,2736.7,2.33138291]
[1740074911515,0.73608955,2736.8,2736.7,2.33138291]
[1740074912517,0.00547955,2736.8,2736.7,2.33138291]
[1740074912723,0.73608955,2736.8,2736.7,2.33138291]
[1740074913122,0.00547955,2736.8,2736.7,2.33138291]
[1740074913423,0.73608955,2736.8,2736.7,2.33138291]
[1740074914026,0.00547955,2736.8,2736.7,5.53918291]
[1740074915127,0.3471,2737.0,2736.9,0.73059]
[1740074915320,0.3471,2737.0,2736.9,2.33133291]
[1740074917724,0.00547955,2737.2,2737.1,0.73053]
[1740074917924,0.00547955,2737.2,2737.1,2.33127291]
[1740074918325,0.00547955,2737.2,2737.1,3.48917291]
[1740074925431,3.2078,2737.5,2737.1,2.75864291]
[1740074925730,0.5763,2738.0,2737.9,0.73032]
[1740074925936,0.5763,2738.0,2737.9,2.33106291]
[1740074926138,1.30659,2738.0,2737.9,2.33106291]
[1740074926643,1.30659,2738.0,2737.9,1.60074291]
[1740074927235,0.73035,2737.8,2737.7,0.00547955]
[1740074927538,0.73053,2737.2,2736.8,7.51332]
[1740074927730,3.2078,2737.5,2737.3,1.60074291]
[1740074927929,0.73045,2737.4,2737.3,1.60074291]
[1740074929136,0.73051,2737.2,2737.1,0.00547955]
[1740074929333,3.93831,2737.2,2737.1,0.00547955]
[1740074938042,3.93831,2737.2,2737.1,1.60622246]
[1740074938549,3.2078,2737.2,2737.1,2.33675246]
[1740074939648,0.73047,2737.4,2737.1,1.60622246]
[1740074939844,3.7542,2737.5,2737.3,1.60074291]
[1740074940150,4.48464,2737.5,2737.4,1.60074291]
[1740074940345,3.7542,2737.5,2737.4,1.60074291]
[1740074940563,4.48463,2737.5,2737.4,1.60074291]
[1740074941342,0.73041,2737.6,2737.4,1.60074291]
[1740074941547,0.5946,2737.7,2737.6,1.60074291]
[1740074941742,1.32497,2737.7,2737.6,1.60074291]
[1740074942247,3.7755,2737.9,2737.8,0.73035]
[1740074942448,3.2078,2737.9,2737.8,2.33109291]
[1740074942638,3.93812,2737.9,2737.8,1.60074291]
[1740074948852,3.93812,2737.9,2737.8,2.33109291]
[1740074949051,3.93812,2737.9,2737.8,1.60074291]
[1740074950167,3.93812,2737.9,2737.8,2.33109291]
[1740074950461,3.2078,2737.9,2737.8,2.33109291]
[1740074950662,3.21145304,2738.2,2737.8,1.60074291]
[1740074950867,3.21145304,2738.2,2738.1,2.33101291]
[1740074951061,3.94169304,2738.2,2738.1,2.33101291]
[1740074951462,0.00365304,2738.2,2738.1,2.33101291]
[1740074951855,0.73389304,2738.2,2738.1,2.33101291]
[1740074952360,3.2078,2738.8,2738.1,4.80854291]
[1740074952556,3.93789,2738.8,2738.7,0.73011]
[1740074952763,3.2078,2738.8,2738.7,2.33085291]
[1740074952967,3.7635,2739.2,2738.7,1.60074291]
[1740074953263,4.49347,2739.2,2739.1,1.60074291]
[1740074953568,4.49347,2739.2,2739.1,2.33074291]
[1740074953569,0.56117955,2739.2,2739.1,2.33074291]
[1740074953768,0.00547955,2739.2,2739.1,2.33074291]
[1740074954267,0.00547955,2739.2,2739.1,5.53854291]
[1740074954469,0.5557,2739.7,2739.1,7.26854291]
[1740074954669,0.72987,2739.6,2739.4,0.72991]
[1740074955071,0.72987,2739.6,2739.5,1.60074291]
[1740074955568,3.2078,2739.8,2739.5,1.60074291]
[1740074955770,3.2078,2739.8,2739.7,1.60074291]
[1740074955965,3.93761,2739.8,2739.7,1.60074291]
[1740074956364,3.2078,2739.8,2739.7,1.60074291]
[1740074956567,3.93761,2739.8,2739.7,1.60074291]
[1740074958564,0.7298,2739.9,2739.7,2.33056291]
[1740074958765,1.29963,2740.1,2740.0,1.60074291]
[1740074958959,0.72973,2740.1,2740.0,1.60074291]
[1740074963179,3.2078,2740.2,2740.0,1.60074291]
[1740074963365,0.5385,2740.4,2740.1,1.60074291]
[1740074963570,3.7652,2740.6,2740.0,3.2078]
[1740074963571,0.72965,2740.5,2740.4,0.72964]
[1740074963762,4.4948,2740.6,2740.5,1.60074291]
[1740074964270,3.9374,2740.6,2740.5,1.60074291]
[1740074966270,3.2078,2740.6,2740.5,1.60074291]
[1740074966471,3.9374,2740.6,2740.5,2.89117291]
[1740074967469,3.2078,2740.6,2740.5,2.89117291]
[1740074967975,3.9374,2740.6,2740.5,2.89117291]
[1740074969577,3.9374,2740.6,2740.5,2.16154291]
[1740074970173,3.9374,2740.6,2740.5,2.89117291]
[1740074970373,3.9374,2740.6,2740.5,2.16154291]
[1740074970575,3.9374,2740.6,2740.5,2.89117291]
[1740074970776,3.9374,2740.6,2740.5,2.16154291]
[1740074971471,3.9374,2740.6,2740.5,2.89117291]
[1740074971675,0.7296,2740.7,2740.6,0.72959]
[1740074971869,1.07775,2740.8,2740.7,1.60074291]
[1740074972079,1.07775,2740.8,2740.7,4.77132291]
[1740074972271,0.72955,2740.8,2740.7,4.77132291]
[1740074976678,0.72955,2740.8,2740.7,4.04174291]
[1740074977385,0.72955,2740.8,2740.7,1.60074291]
[1740074977980,0.5564,2741.0,2740.7,1.60074291]
[1740074978177,0.5564,2741.0,2740.9,1.60074291]
[1740074979774,1.2859,2741.0,2740.9,1.60074291]
[1740074980274,1.28761891,2741.0,2740.9,1.60074291]
[1740074980781,4.49541891,2741.0,2740.9,1.60074291]
[1740074982082,0.72965,2740.4,2740.3,0.00547955]
[1740074982580,0.72965,2740.4,2740.3,0.87150246]
[1740074982978,1.28975,2740.4,2740.3,0.87150246]
[1740074985879,1.28975,2740.4,2740.3,0.00547955]
[1740074986085,1.28975,2740.4,2739.5,0.72987]
[1740074986086,0.72987,2739.6,2739.5,0.72987]
[1740074986283,0.72989,2739.5,2739.4,4.53121]
[1740074986483,0.72989,2739.5,2739.4,3.8013]
[1740074986687,0.72989,2739.5,2739.4,4.66732291]
[1740074986875,0.72989,2739.5,2739.4,2.18944291]
[1740074987078,0.72989,2739.6,2739.5,0.72988]
[1740074987380,1.28958955,2739.8,2739.7,0.86602291]
[1740074987783,1.28958955,2739.8,2739.7,41.66602291]
[1740074989578,1.28958955,2739.8,2739.7,0.86602291]
[1740074990090,1.28958955,2739.8,2739.7,41.66602291]
[1740074991091,1.28958955,2739.8,2739.7,42.39586291]
[1740074991287,1.28958955,2739.8,2739.7,41.66602291]
[1740074992090,1.28958955,2739.8,2739.7,42.39586291]
[1740074992388,1.28958955,2739.8,2739.7,41.66602291]
[1740074992788,4.49738955,2739.8,2739.7,0.86602291]
[1740074994788,0.72995,2739.3,2739.2,0.00547955]
[1740074994986,3.93775,2739.3,2739.2,0.00547955]
[1740074995182,3.93775,2739.3,2739.2,0.87150246]
[1740074996884,3.93775,2739.3,2739.2,0.00547955]
[1740074997289,6.38375,2739.3,2739.2,9.55e-06]
[1740074998784,12.38375,2739.3,2739.2,9.55e-06]
[1740074999185,12.38375,2739.3,2737.2,20.24]
[1740074999186,11.6538,2739.3,2737.2,20.24]
[1740074999392,3.2078,2738.4,2738.2,0.86602291]
[1740074999591,1.83571,2738.3,2738.2,0.86602291]
[1740075000392,0.73027,2738.1,2738.0,0.00547955]
[1740075000593,3.93807,2738.1,2738.0,0.00547955]
[1740075001293,3.2078,2738.1,2738.0,0.87150246]
[1740075001499,0.73027,2738.1,2738.0,0.87150246]
[1740075001698,1.11097955,2738.3,2738.0,0.87150246]
[1740075001891,0.73568955,2738.3,2738.2,0.86602291]
[1740075002586,0.73027,2738.1,2738.0,0.00547955]
[1740075002792,0.7304,2737.6,2737.3,0.576]
[1740075002992,0.73039,2737.7,2737.3,0.576]
[1740075003297,0.73037,2737.7,2737.6,0.73038]
[1740075003500,3.2078,2737.8,2737.6,1.42622291]
[1740075003701,0.73035,2737.8,2737.7,0.86602291]
[1740075004401,3.93815,2737.8,2737.7,0.86602291]
[1740075004793,3.2078,2737.8,2737.5,0.00547955]
[1740075004991,0.7304,2737.6,2737.5,0.00547955]
[1740075005588,0.7304,2737.6,2737.5,0.87150246]
[1740075006189,0.7304,2737.6,2737.5,1.60193246]
[1740075006388,0.7304,2737.6,2737.5,0.87150246]
[1740075008703,3.2078,2738.4,2737.5,4.07930246]
[1740075008898,1.84444,2738.2,2738.1,0.86602291]
[1740075010004,3.2078,2738.7,2738.1,0.86602291]
[1740075010203,0.73570955,2738.3,2738.2,0.86602291]
[1740075013299,0.73568955,2738.3,2738.2,1.59626291]
[1740075013497,0.73568955,2738.3,2738.2,0.86602291]
[1740075014403,1.82561,2738.2,2737.6,3.74369]
[1740075014709,0.73027,2738.1,2738.0,0.86602291]
[1740075014898,1.31117,2738.1,2738.0,0.86602291]
[1740075016202,4.51897,2738.1,2738.0,0.86602291]
[1740075017508,4.51897,2738.1,2737.5,0.00547955]
[1740075017509,3.7887,2738.1,2737.5,0.00547955]
[1740075017807,0.7304,2737.6,2737.5,0.00547955]
[1740075018206,0.7304,2737.6,2737.5,0.87150246]
[1740075019005,1.82574,2738.0,2737.5,0.87150246]
[1740075019202,0.7304,2737.6,2737.5,0.73588955]
[1740075019706,0.7304,2737.6,2737.5,1.60191246]
[1740075019908,0.73034,2737.9,2737.8,0.73033]
[1740075020114,3.2078,2738.1,2737.8,0.86602291]
[1740075020303,3.93809,2738.1,2738.0,1.59631291]
[1740075020606,0.73029,2738.1,2738.0,1.59631291]
[1740075020811,0.00547955,2738.3,2738.0,1.42662291]
[1740075021018,0.00547955,2738.3,2738.2,1.59626291]
[1740075021406,0.00547955,2738.3,2738.2,44.85426291]